fUST/lending_fUST_20250301
["ID","MTS","AMOUNT","RATE_DAILY","PERIOD"]
[354876696,1740765046565,-1547.69,0.00049315,120]
[354876697,1740765046574,-910.13,0.00049315,120]
[354876698,1740765046583,-500.0,0.00049315,120]
[354876699,1740765046593,-500.0,0.00049315,120]
[354876700,1740765046603,-500.0,0.00049315,120]
[354876701,1740765046713,-500.0,0.00049315,120]
[354876702,1740765046724,-500.0,0.00049315,120]
[354876703,1740765046734,-1990.84,0.00049315,120]
[354876704,1740765046743,-996.99,0.00049315,120]
[354876705,1740765046752,-500.0,0.00049315,120]
[354876706,1740765046762,-500.0,0.00049315,120]
[354876707,1740765046771,-500.0,0.00049315,120]
[354876708,1740765046781,-500.0,0.00049315,120]
[354876709,1740765046791,-500.0,0.00049315,120]
[354876710,1740765046802,-500.0,0.00049315,120]
[354876711,1740765046812,-500.0,0.00049315,120]
[354876712,1740765046821,-500.0,0.00049315,120]
[354876713,1740765046831,-503.14613345,0.00049315,120]
[354876714,1740765046842,-500.0,0.00049315,120]
[354876715,1740765046851,-500.0,0.00049315,120]
[354876716,1740765046861,-504.4,0.00049315,120]
[354876717,1740765046871,-500.0,0.00049315,120]
[354876718,1740765046883,-2645.81,0.00049315,120]
[354876719,1740765046894,-6130.77,0.00049315,120]
[354876720,1740765046904,-500.0,0.00049315,120]
[354876721,1740765046914,-500.80156479,0.00049315,120]
[354876722,1740765046923,-500.0,0.00049315,120]
[354876723,1740765046933,-500.0,0.00049315,120]
[354876724,1740765046942,-1000.0,0.00049315,5]
[354876725,1740765046952,-500.0,0.00049315,120]
[354876726,1740765046962,-500.0,0.00049315,120]
[354876727,1740765046973,-500.0,0.00049315,120]
[354876728,1740765046983,-500.0,0.00049315,120]
[354876729,1740765046992,-500.0,0.00049315,120]
[354876730,1740765047002,-500.0,0.00049315,120]
[354876731,1740765047011,-500.0,0.00049315,120]
[354876732,1740765047020,-500.0,0.00049315,120]
[354876733,1740765047029,-500.0,0.00049315,120]
[354876734,1740765047038,-500.0,0.00049315,120]
[354876735,1740765047048,-805.8,0.00049315,120]
[354876736,1740765047058,-500.0,0.00049315,120]
[354876737,1740765047067,-500.0,0.00049315,120]
[354876738,1740765047076,-500.0,0.00049315,120]
[354876739,1740765047085,-500.0,0.00049315,120]
[354876740,1740765047095,-500.0,0.00049315,120]
[354876741,1740765047105,-500.0,0.00049315,120]
[354876742,1740765047114,-44169.17,0.00049315,6]
[354876743,1740765047123,-500.0,0.00049315,120]
[354876744,1740765047133,-506.32252388,0.00049315,120]
[354876745,1740765047142,-500.0,0.00049315,120]
[354876746,1740765047153,-1326.91,0.00049315,120]
[354876747,1740765047163,-500.0,0.00049315,120]
[354876748,1740765047172,-500.0,0.00049315,120]
[354876749,1740765047182,-1000.0,0.00049315,60]
[354876750,1740765047191,-500.0,0.00049315,120]
[354876751,1740765047200,-500.0,0.00049315,120]
[354876752,1740765047210,-502.69755292,0.00049315,120]
[354876753,1740765047219,-500.0,0.00049315,120]
[354876754,1740765047228,-500.0,0.00049315,45]
[354876755,1740765047237,-908.05,0.00049315,120]
[354876756,1740765047247,-500.0,0.00049315,120]
[354876757,1740765047256,-637.37,0.00049315,120]
[354876758,1740765047265,-500.0,0.00049315,120]
[354876759,1740765047275,-500.0,0.00049315,120]
[354876760,1740765047284,-500.0,0.00049315,120]
[354876761,1740765047293,-500.0,0.00049315,120]
[354876762,1740765047303,-500.0,0.00049315,120]
[354876763,1740765047312,-649.87,0.00049315,120]
[354876764,1740765047321,-1000.0,0.00049315,120]
[354876765,1740765047331,-500.0,0.00049315,120]
[354876766,1740765047340,-500.0,0.00049315,120]
[354876767,1740765047350,-500.0,0.00049315,120]
[354876768,1740765047359,-500.0,0.00049315,120]
[354876769,1740765047368,-500.0,0.00049315,120]
[354876770,1740765047377,-500.0,0.00049315,120]
[354876771,1740765047388,-500.0,0.00049315,120]
[354876772,1740765047399,-500.86606789,0.00049315,120]
[354876773,1740765047408,-1255.33,0.00049315,120]
[354876774,1740765047418,-500.0,0.00049315,120]
[354876775,1740765047427,-728.05,0.00049315,120]
[354876776,1740765047436,-500.0,0.00049315,120]
[354876777,1740765047446,-500.0,0.00049315,120]
[354876778,1740765047455,-500.0,0.00049315,120]
[354876779,1740765047464,-500.0,0.00049315,20]
[354876780,1740765047474,-566.0,0.00049315,120]
[354876781,1740765047483,-500.0,0.00049315,120]
[354876782,1740765047493,-700.82,0.00049315,120]
[354876783,1740765047502,-500.0,0.00049315,120]
[354876784,1740765047511,-619.94,0.00049315,30]
[354876785,1740765047521,-500.0,0.00049315,120]
[354876786,1740765047531,-500.0,0.00049315,120]
[354876787,1740765047540,-500.0,0.00049315,120]
[354876788,1740765047549,-995.81,0.00049315,120]
[354876789,1740765047559,-500.84187753,0.00049315,120]
[354876790,1740765047569,-2843.81,0.00049315,120]
[354876791,1740765047578,-500.0,0.00049315,120]
[354876792,1740765047587,-500.0,0.00049315,120]
[354876793,1740765047596,-500.0,0.00049315,120]
[354876794,1740765047606,-500.0,0.00049315,120]
[354876795,1740765047615,-1438.81,0.00049315,120]
[354876796,1740765047624,-500.0,0.00049315,120]
[354876797,1740765047633,-707.29,0.00049315,120]
[354876798,1740765047644,-823.13,0.00049315,120]
[354876799,1740765047653,-500.0,0.00049315,120]
[354876800,1740765047662,-500.0,0.00049315,120]
[354876801,1740765047671,-500.0,0.00049315,120]
[354876802,1740765047681,-500.0,0.00049315,120]
[354876803,1740765047691,-500.0,0.00049315,120]
[354876804,1740765047701,-10543.39,0.00049315,120]
[354876805,1740765047710,-500.0,0.00049315,120]
[354876806,1740765047719,-524.82,0.00049315,120]
[354876807,1740765047729,-502.35165909,0.00049315,120]
[354876808,1740765047738,-500.0,0.00049315,120]
[354876809,1740765047747,-500.0,0.00049315,120]
[354876810,1740765047757,-500.0,0.00049315,120]
[354876811,1740765047766,-500.0,0.00049315,120]
[354876812,1740765047775,-500.0,0.00049315,120]
[354876813,1740765047784,-500.0,0.00049315,120]
[354876814,1740765047794,-500.0,0.00049315,120]
[354876815,1740765047806,-3799.75,0.00049315,120]
[354876816,1740765047815,-500.0,0.00049315,120]
[354876817,1740765047825,-12764.84,0.00049315,120]
[354876818,1740765047834,-500.0,0.00049315,120]
[354876819,1740765047844,-508.95171937,0.00049315,120]
[354876820,1740765047854,-512.07,0.00049315,120]
[354876821,1740765047863,-501.74455658,0.00049315,120]
[354876822,1740765047872,-500.0,0.00049315,120]
[354876823,1740765047881,-500.0,0.00049315,120]
[354876824,1740765047892,-500.0,0.00049315,120]
[354876825,1740765047901,-2286.03,0.00049315,120]
[354876826,1740765047910,-500.0,0.00049315,2]
[354876827,1740765047920,-500.0,0.00049315,120]
[354876828,1740765047929,-500.0,0.00049315,120]
[354876829,1740765047938,-500.0,0.00049315,120]
[354876830,1740765047947,-500.0,0.00049315,120]
[354876831,1740765047956,-500.0,0.00049315,120]
[354876832,1740765047965,-500.0,0.00049315,120]
[354876833,1740765047975,-500.0,0.00049315,120]
[354876834,1740765047984,-500.0,0.00049315,120]
[354876835,1740765047993,-502.22840812,0.00049315,120]
[354876836,1740765048003,-500.0,0.00049315,120]
[354876837,1740765048014,-500.0,0.00049315,120]
[354876838,1740765048023,-500.0,0.00049315,120]
[354876839,1740765048032,-500.0,0.00049315,120]
[354876840,1740765048042,-500.0,0.00049315,120]
[354876841,1740765048051,-500.0,0.00049315,120]
[354876842,1740765048060,-1256240.68986647,0.00049315,59]
[354876843,1740765048608,-2100.0,0.00048689,10]
[354876844,1740765080688,-836.25,0.00048689,10]
[354876845,1740765895736,-9783.76034205,0.00061053,120]
[354876846,1740765895958,-240.82074905,0.00061053,120]
[354876847,1740765895988,-310.83787776,0.00061053,120]
[354876848,1740765896018,-438.56550993,0.00061053,120]
[354876849,1740765896049,-608.52118958,0.00061053,120]
[354876850,1740765896080,-419.03263431,0.00061053,120]
[354876851,1740765896113,-414.57847726,0.00061053,120]
[354876852,1740765896144,-212.09815207,0.00061053,120]
[354876853,1740765896177,-223.16356871,0.00061053,120]
[354876854,1740765896207,-311.37820144,0.00061053,120]
[354876855,1740765896261,-3000.0,0.00061053,120]
[354876856,1740765896292,-626.542949,0.00061053,83]
[354876857,1740765896321,-2503.61710861,0.00061053,120]
[354876858,1740765896350,-3324.10019029,0.00061053,120]
[354876859,1740765896380,-899.71437348,0.00061053,120]
[354876860,1740765896409,-676.15642488,0.00061053,120]
[354876861,1740765896438,-1056.13735329,0.00061053,120]
[354876862,1740765896466,-930.66538213,0.00061053,120]
[354876863,1740765896495,-1079.13008248,0.00061053,120]
[354876864,1740765896524,-933.66578415,0.00061053,120]
[354876865,1740765896552,-1034.88537983,0.00061053,120]
[354876866,1740765896579,-990.20953588,0.00061053,120]
[354876867,1740765896608,-200.17304636,0.00061053,120]
[354876868,1740765896638,-560.86,0.00061053,120]
[354876869,1740765896667,-500.0,0.00061053,120]
[354876870,1740765896696,-500.0,0.00061053,120]
[354876871,1740765896725,-500.0,0.00061053,120]
[354876872,1740765896755,-29589.0,0.00061053,120]
[354876873,1740765896784,-20000.0,0.00061053,120]
[354876874,1740765896813,-20000.0,0.00061053,120]
[354876875,1740765896842,-20000.0,0.00061053,120]
[354876876,1740765896870,-45097.85564262,0.00061053,120]
[354876877,1740765896904,-33779.485342,0.00061053,120]
[354876878,1740765896934,-250.0,0.00061053,120]
[354876879,1740765896963,-150.0,0.00061053,120]
[354876880,1740765896993,-150.0,0.00061053,120]
[354876881,1740765897022,-150.0,0.00061053,120]
[354876882,1740765897051,-150.0,0.00061053,120]
[354876883,1740765897080,-150.0,0.00061053,120]
[354876884,1740765897112,-150.734,0.00061053,120]
[354876885,1740765897143,-150.0,0.00061053,120]
[354876886,1740765897171,-150.0,0.00061053,120]
[354876887,1740765897201,-295.974,0.00061053,120]
[354876888,1740765897230,-150.0,0.00061053,120]
[354876889,1740765897259,-150.0,0.00061053,120]
[354876890,1740765897287,-150.0,0.00061053,120]
[354876891,1740765897316,-240.029,0.00061053,120]
[354876892,1740765897344,-150.0,0.00061053,120]
[354876893,1740765897372,-150.0,0.00061053,120]
[354876894,1740765897402,-150.0,0.00061053,120]
[354876895,1740765897432,-150.0,0.00061053,120]
[354876896,1740765897460,-150.0,0.00061053,120]
[354876897,1740765897488,-150.0,0.00061053,120]
[354876898,1740765897517,-150.0,0.00061053,120]
[354876899,1740765897545,-150.0,0.00061053,120]
[354876900,1740765897573,-397.0,0.00061053,120]
[354876901,1740765897604,-397.0,0.00061053,120]
[354876902,1740765897633,-150.0,0.00061053,120]
[354876903,1740765897662,-150.0,0.00061053,120]
[354876904,1740765897690,-150.0,0.00061053,120]
[354876905,1740765897719,-397.0,0.00061053,120]
[354876906,1740765897747,-150.0,0.00061053,120]
[354876907,1740765897775,-397.0,0.00061053,120]
[354876908,1740765897804,-397.0,0.00061053,120]
[354876909,1740765897832,-150.0,0.00061053,120]
[354876910,1740765897860,-397.0,0.00061053,120]
[354876911,1740765897890,-397.0,0.00061053,120]
[354876912,1740765897920,-150.0,0.00061053,120]
[354876913,1740765897950,-150.0,0.00061053,120]
[354876914,1740765897980,-397.0,0.00061053,120]
[354876915,1740765898008,-150.0,0.00061053,120]
[354876916,1740765898038,-397.0,0.00061053,120]
[354876917,1740765898068,-397.0,0.00061053,120]
[354876918,1740765898104,-397.0,0.00061053,120]
[354876919,1740765898135,-150.0,0.00061053,120]
[354876920,1740765898167,-150.0,0.00061053,120]
[354876921,1740765898200,-397.0,0.00061053,120]
[354876922,1740765898232,-397.0,0.00061053,120]
[354876923,1740765898264,-287.038,0.00061053,120]
[354876924,1740765898293,-548.6,0.00061053,120]
[354876925,1740765898324,-539.0,0.00061053,120]
[354876926,1740765898355,-539.0,0.00061053,120]
[354876927,1740765898386,-539.0,0.00061053,120]
[354876928,1740765898416,-539.0,0.00061053,120]
[354876929,1740765898446,-539.0,0.00061053,120]
[354876930,1740765898477,-539.0,0.00061053,120]
[354876931,1740765898508,-539.0,0.00061053,120]
[354876932,1740765898539,-1958.0,0.00061053,120]
[354876933,1740765898569,-539.0,0.00061053,120]
[354876934,1740765898601,-1958.0,0.00061053,120]
[354876935,1740765898633,-539.0,0.00061053,120]
[354876936,1740765898662,-1958.0,0.00061053,120]
[354876937,1740765898848,-539.0,0.00061053,120]
[354876938,1740765898882,-1958.0,0.00061053,120]
[354876939,1740765898914,-539.0,0.00061053,120]
[354876940,1740765898945,-1958.0,0.00061053,120]
[354876941,1740765898976,-539.0,0.00061053,120]
[354876942,1740765899006,-1958.0,0.00061053,120]
[354876943,1740765899035,-539.0,0.00061053,120]
[354876944,1740765899066,-1958.0,0.00061053,120]
[354876945,1740765899096,-539.0,0.00061053,120]
[354876946,1740765899129,-1958.0,0.00061053,120]
[354876947,1740765899157,-539.0,0.00061053,120]
[354876948,1740765899186,-1958.0,0.00061053,120]
[354876949,1740765899215,-1958.0,0.00061053,120]
[354876950,1740765899243,-1958.0,0.00061053,120]
[354876951,1740765899270,-539.0,0.00061053,120]
[354876952,1740765899298,-1958.0,0.00061053,120]
[354876953,1740765899326,-539.0,0.00061053,120]
[354876954,1740765899352,-1958.0,0.00061053,120]
[354876955,1740765899381,-539.0,0.00061053,120]
[354876956,1740765899409,-1958.0,0.00061053,120]
[354876957,1740765899438,-539.0,0.00061053,120]
[354876958,1740765899465,-1958.0,0.00061053,120]
[354876959,1740765899492,-539.0,0.00061053,120]
[354876960,1740765899520,-539.0,0.00061053,120]
[354876961,1740765899547,-1958.0,0.00061053,120]
[354876962,1740765899576,-1958.0,0.00061053,120]
[354876963,1740765899603,-1958.0,0.00061053,120]
[354876964,1740765899630,-1958.0,0.00061053,120]
[354876965,1740765899657,-1958.0,0.00061053,120]
[354876966,1740765899684,-1908.312,0.00061053,120]
[354876967,1740765899710,-2288.848,0.00061053,120]
[354876968,1740765899737,-2280.0,0.00061053,120]
[354876969,1740765899764,-2280.0,0.00061053,120]
[354876970,1740765899791,-2280.0,0.00061053,120]
[354876971,1740765899818,-2280.0,0.00061053,120]
[354876972,1740765899845,-2280.0,0.00061053,120]
[354876973,1740765899874,-2280.0,0.00061053,120]
[354876974,1740765899903,-2280.0,0.00061053,120]
[354876975,1740765899932,-2280.0,0.00061053,120]
[354876976,1740765899961,-2280.0,0.00061053,120]
[354876977,1740765899990,-2280.0,0.00061053,120]
[354876978,1740765900021,-2280.0,0.00061053,120]
[354876979,1740765900051,-2280.0,0.00061053,120]
[354876980,1740765900082,-2280.0,0.00061053,120]
[354876981,1740765900113,-2280.0,0.00061053,120]
[354876982,1740765900148,-2280.0,0.00061053,120]
[354876983,1740765900180,-2280.0,0.00061053,120]
[354876984,1740765900210,-2280.0,0.00061053,120]
[354876985,1740765900241,-2280.0,0.00061053,120]
[354876986,1740765900272,-2280.0,0.00061053,120]
[354876987,1740765900303,-2280.0,0.00061053,120]
[354876988,1740765900333,-2280.0,0.00061053,120]
[354876989,1740766156108,-185.612083,0.00032877,2]
[354876990,1740766156129,-629.73493526,0.00033,30]
[354876991,1740766156150,-2242.33377657,0.00037151,2]
[354877038,1740766231933,-538.37904333,0.00037151,2]
[354877040,1740766231945,-22119.2871801,0.00037151,2]
[354877042,1740766231954,-202.07456842,0.000379,8]
[354877044,1740766231963,-200.0,0.0004,120]
[354877046,1740766231972,-300.0,0.000474,120]
[354877048,1740766231982,-723.56291672,0.00047458,2]
[354877049,1740766231991,-1103.23851444,0.00048754,2]
[354877051,1740766232000,-1000.0,0.00049,120]
[354877053,1740766232009,-500.0,0.00049186,2]
[354877055,1740766232018,-16001.02910943,0.000492,30]
[354877058,1740766232035,-8998.97089057,0.000492,30]
[354877060,1740766232045,-11905.62,0.00049205,10]
[354877062,1740766232055,-9921.35,0.00049205,10]
[354877064,1740766232064,-589.53666901,0.00049211,120]
[354877066,1740766232073,-1000.0,0.00049214,120]
[354877068,1740766232083,-3000.0,0.00049215,2]
[354877070,1740766232111,-71975.90831683,0.00049215,2]
[354877445,1740766507931,32918.30296117,0.00025204,10]
[354877452,1740767187247,150.0,0.00023104,2]
[354877455,1740767296889,43844.433393,0.0002,120]
[354877464,1740767315439,374.33650559,0.00016,2]
[354877466,1740767318227,8056.7236647,0.0003,2]
[354877474,1740767324122,1974.40867056,0.00016487,2]
[354877513,1740767438172,-193.566887,0.00032877,2]
[354877514,1740767438182,-195.3125,0.00039384,120]
[354877515,1740767438192,-534.1685472,0.0004,120]
[354877516,1740767438201,-400.0,0.00041543,5]
[354877517,1740767438211,-24900.0,0.00041544,2]
[354877518,1740767438220,-159.208164,0.00045655,59]
[354877519,1740767438230,-159.208164,0.00046344,59]
[354877520,1740767438240,-159.208164,0.00046705,2]
[354877521,1740767438250,-159.208164,0.00047033,59]
[354877522,1740767438259,-159.208164,0.00047083,2]
[354877523,1740767438270,-159.208164,0.00047461,2]
[354877524,1740767438280,-159.208164,0.00047723,59]
[354877525,1740767438289,-159.208164,0.00047838,2]
[354877526,1740767438299,-159.208164,0.00048216,2]
[354877527,1740767438308,-159.208164,0.00048412,59]
[354877528,1740767438318,-1138.0,0.00049,30]
[354877529,1740767438327,-157.91753431,0.00049015,28]
[354877530,1740767438337,-500.0,0.00049086,2]
[354877531,1740767438347,-4810.09,0.00049105,10]
[354877532,1740767438357,-7510.15,0.00049105,10]
[354877533,1740767438367,-6258.46,0.00049105,10]
[354877534,1740767438377,-41834.66750523,0.00049115,35]
[354877535,1740767438387,-152510.10012438,0.00049115,29]
[354877536,1740767438397,-222000.0,0.00049115,2]
[354877537,1740767438407,-500.0,0.00049173,2]
[354877538,1740767438419,-3000.0,0.00049215,2]
[354877539,1740767438429,-55555.0,0.00049215,120]
[354877540,1740767438439,-5617.42110144,0.00049273,2]
[354877541,1740767438449,-74618.21,0.000493,30]
[354877542,1740767438459,-337.96,0.000493,30]
[354877543,1740767438468,-2345.33,0.000493,30]
[354877544,1740767438479,-439.51,0.000493,30]
[354877545,1740767438488,-1083.98,0.000493,30]
[354877546,1740767438498,-3479.56,0.000493,30]
[354877547,1740767438507,-150.0,0.000493,120]
[354877548,1740767438517,-150.0,0.000493,2]
[354877549,1740767438527,-2000.0,0.0004931,120]
[354877550,1740767438537,-398.36761842,0.00049314,31]
[354877551,1740767438547,-202.12019617,0.00049314,120]
[354877552,1740767438557,-500.0,0.00049315,30]
[354877553,1740767438566,-500.0,0.00049315,120]
[354877554,1740767438576,-500.0,0.00049315,120]
[354877555,1740767438587,-500.0,0.00049315,120]
[354877556,1740767438596,-500.0,0.00049315,120]
[354877557,1740767438610,-500.0,0.00049315,120]
[354877558,1740767438620,-500.0,0.00049315,120]
[354877559,1740767438630,-500.0,0.00049315,120]
[354877560,1740767438639,-500.0,0.00049315,120]
[354877561,1740767438650,-500.0,0.00049315,120]
[354877562,1740767438662,-500.0,0.00049315,120]
[354877563,1740767438671,-500.0,0.00049315,2]
[354877564,1740767438683,-502.09340099,0.00049315,2]
[354877565,1740767438694,-500.0,0.00049315,120]
[354877566,1740767438703,-500.0,0.00049315,120]
[354877567,1740767438713,-500.0,0.00049315,120]
[354877568,1740767438723,-500.0,0.00049315,120]
[354877569,1740767438733,-500.0,0.00049315,120]
[354877570,1740767438742,-500.0,0.00049315,120]
[354877571,1740767438752,-503.40568368,0.00049315,120]
[354877572,1740767438762,-500.0,0.00049315,120]
[354877573,1740767438773,-500.0,0.00049315,120]
[354877574,1740767438783,-597.30177918,0.00049315,120]
[354877575,1740767438793,-500.0,0.00049315,120]
[354877576,1740767438802,-500.0,0.00049315,120]
[354877577,1740767438812,-233.16725646,0.00049315,120]
[354877578,1740767438821,-256.53008996,0.00049315,120]
[354877579,1740767438831,-500.0,0.00049315,120]
[354877580,1740767438841,-500.0,0.00049315,120]
[354877581,1740767438851,-500.0,0.00049315,120]
[354877582,1740767438861,-507.8694342,0.00049315,14]
[354877583,1740767438871,-500.0,0.00049315,120]
[354877584,1740767438881,-532.52365038,0.00049315,120]
[354877585,1740767438891,-500.0,0.00049315,120]
[354877586,1740767438901,-500.0,0.00049315,15]
[354877587,1740767438913,-500.0,0.00049315,120]
[354877588,1740767438923,-501.04449748,0.00049315,120]
[354877589,1740767438933,-500.0,0.00049315,120]
[354877590,1740767438943,-500.0,0.00049315,120]
[354877591,1740767438953,-505.64713136,0.00049315,120]
[354877592,1740767439158,-1563.7,0.00049315,120]
[354877593,1740767439169,-500.0,0.00049315,120]
[354877594,1740767439180,-500.0,0.00049315,120]
[354877595,1740767439190,-500.0,0.00049315,120]
[354877596,1740767439200,-500.0,0.00049315,120]
[354877597,1740767439209,-500.0,0.00049315,120]
[354877598,1740767439219,-500.0,0.00049315,120]
[354877599,1740767439229,-500.0,0.00049315,120]
[354877600,1740767439239,-500.0,0.00049315,120]
[354877601,1740767439248,-500.0,0.00049315,120]
[354877602,1740767439257,-500.0,0.00049315,120]
[354877603,1740767439267,-500.0,0.00049315,120]
[354877604,1740767439277,-648.96,0.00049315,120]
[354877605,1740767439286,-500.0,0.00049315,120]
[354877606,1740767439295,-500.0,0.00049315,120]
[354877607,1740767439305,-515.1832253,0.00049315,120]
[354877608,1740767439315,-500.0,0.00049315,120]
[354877609,1740767439324,-500.0,0.00049315,120]
[354877610,1740767439334,-500.0,0.00049315,120]
[354877611,1740767439344,-500.0,0.00049315,120]
[354877612,1740767439354,-500.0,0.00049315,120]
[354877613,1740767439363,-500.0,0.00049315,120]
[354877614,1740767439373,-500.0,0.00049315,120]
[354877615,1740767439382,-220.95337482,0.00049315,120]
[354877616,1740767439392,-500.0,0.00049315,2]
[354877617,1740767439401,-563.94873085,0.00049315,120]
[354877618,1740767439412,-226.63760584,0.00049315,120]
[354877619,1740767439421,-500.0,0.00049315,120]
[354877620,1740767439431,-500.0,0.00049315,14]
[354877621,1740767439441,-500.0,0.00049315,120]
[354877622,1740767439450,-1531.88,0.00049315,120]
[354877623,1740767439460,-521.21,0.00049315,120]
[354877624,1740767439470,-374.49887522,0.00049315,120]
[354877625,1740767439479,-500.0,0.00049315,120]
[354877626,1740767439489,-500.0,0.00049315,120]
[354877627,1740767439499,-500.0,0.00049315,120]
[354877628,1740767439508,-500.0,0.00049315,120]
[354877629,1740767439518,-500.0,0.00049315,120]
[354877630,1740767439529,-500.0,0.00049315,120]
[354877631,1740767439540,-1029.98,0.00049315,120]
[354877632,1740767439550,-560.36,0.00049315,120]
[354877633,1740767439560,-500.0,0.00049315,120]
[354877634,1740767439569,-503.60791746,0.00049315,120]
[354877635,1740767439579,-500.0,0.00049315,120]
[354877636,1740767439592,-500.0,0.00049315,120]
[354877637,1740767439602,-541.57033908,0.00049315,120]
[354877638,1740767439611,-500.0,0.00049315,120]
[354877640,1740767439621,-524.32032798,0.00049315,120]
[354877641,1740767439631,-500.0,0.00049315,120]
[354877642,1740767439640,-500.0,0.00049315,120]
[354877643,1740767439650,-500.0,0.00049315,120]
[354877644,1740767439662,-1000.0,0.00049315,120]
[354877645,1740767439672,-510.87028938,0.00049315,120]
[354877646,1740767439682,-500.0,0.00049315,30]
[354877648,1740767439692,-500.0,0.00049315,120]
[354877649,1740767439701,-500.0,0.00049315,120]
[354877651,1740767439710,-630.90146104,0.00049315,120]
[354877652,1740767439720,-500.0,0.00049315,120]
[354877653,1740767439729,-500.0,0.00049315,120]
[354877654,1740767439738,-500.0,0.00049315,120]
[354877655,1740767439747,-500.0,0.00049315,120]
[354877656,1740767439756,-594.2,0.00049315,120]
[354877657,1740767439766,-500.0,0.00049315,120]
[354877658,1740767439775,-500.0,0.00049315,120]
[354877659,1740767439784,-500.0,0.00049315,120]
[354877660,1740767439793,-500.0,0.00049315,120]
[354877661,1740767439802,-500.0,0.00049315,120]
[354877662,1740767439812,-500.0,0.00049315,120]
[354877663,1740767439821,-500.0,0.00049315,120]
[354877664,1740767439830,-500.0,0.00049315,120]
[354877665,1740767439839,-501.18407411,0.00049315,120]
[354877666,1740767439849,-200.0,0.00049315,7]
[354877667,1740767439859,-500.0,0.00049315,120]
[354877668,1740767439868,-613.06,0.00049315,120]
[354877669,1740767439877,-500.0,0.00049315,120]
[354877670,1740767439887,-500.0,0.00049315,120]
[354877671,1740767439897,-500.0,0.00049315,120]
[354877672,1740767439907,-500.0,0.00049315,120]
[354877673,1740767439918,-1489.2,0.00049315,120]
[354877674,1740767439928,-500.0,0.00049315,120]
[354877675,1740767439937,-500.0,0.00049315,120]
[354877676,1740767439947,-500.0,0.00049315,120]
[354877677,1740767439956,-500.0,0.00049315,120]
[354877678,1740767439966,-500.0,0.00049315,120]
[354877679,1740767439975,-500.0,0.00049315,120]
[354877680,1740767439985,-503.52493594,0.00049315,120]
[354877681,1740767439994,-500.0,0.00049315,120]
[354877682,1740767440004,-500.0,0.00049315,120]
[354877683,1740767440013,-500.0,0.00049315,120]
[354877684,1740767440023,-500.0,0.00049315,120]
[354877686,1740767440033,-500.0,0.00049315,120]
[354877687,1740767440043,-500.0,0.00049315,120]
[354877688,1740767440052,-500.0,0.00049315,120]
[354877689,1740767440062,-500.0,0.00049315,120]
[354877690,1740767440072,-500.0,0.00049315,120]
[354877691,1740767440082,-500.0,0.00049315,120]
[354877692,1740767440092,-500.0,0.00049315,120]
[354877693,1740767440103,-500.0,0.00049315,120]
[354877694,1740767440113,-887.58,0.00049315,120]
[354877695,1740767440123,-500.0,0.00049315,120]
[354877696,1740767440132,-500.0,0.00049315,120]
[354877697,1740767440142,-500.0,0.00049315,120]